bitfinex/quotes_SOLUSD_20250722
["timestamp","ask_amount","ask_price","bid_price","bid_amount"]
[1753207767195,10.48163629,203.1,203.05,29.53]
[1753207767351,35.0,203.09,203.05,29.53]
[1753207768262,35.0,203.09,203.05,30.2]
[1753207768741,4.92222878,203.16,203.05,34.45488313]
[1753207768942,2.2361,203.21,203.14,39.29163629]
[1753207769167,47.03773629,203.21,203.14,39.29163629]
[1753207769369,0.06,203.2,203.16,29.53]
[1753207769846,10.48163629,203.19,203.16,29.53]
[1753207770049,10.48163629,203.18,203.13,29.53]
[1753207770247,35.08,203.17,203.13,39.29163629]
[1753207770648,35.08,203.17,203.13,39.96163629]
[1753207770850,35.08,203.17,203.13,44.88451581]
[1753207771053,35.08,203.17,203.13,39.96163629]
[1753207771250,0.06,203.2,203.15,39.29163629]
[1753207771560,35.08,203.19,203.16,39.29163629]
[1753207771764,35.08,203.19,203.17,9.76163629]
[1753207771954,35.08,203.19,203.18,39.29163629]
[1753207772744,35.08,203.19,203.18,29.53]
[1753207772948,35.08,203.19,203.16,29.53]
[1753207773149,35.08,203.19,203.16,39.29163629]
[1753207773550,10.48163629,203.18,203.11,29.53]
[1753207773756,9.76163629,203.16,203.11,29.53]
[1753207774062,35.06,203.15,203.12,39.29163629]
[1753207774259,35.06,203.15,203.12,39.96163629]
[1753207774761,35.06,203.15,203.12,30.2]
[1753207775160,0.72,203.14,203.09,29.53]
[1753207775359,10.48163629,203.13,203.09,29.53]
[1753207775560,9.76163629,203.11,203.06,29.53]
[1753207775762,9.76163629,203.09,203.04,0.03]
[1753207775984,9.76163629,203.08,203.04,0.03]
[1753207776476,10.48163629,203.08,203.04,0.03]
[1753207776775,35.06,203.11,203.04,0.03]
[1753207776974,35.06,203.1,203.06,9.76163629]
[1753207777276,35.06,203.11,203.07,0.67]
[1753207777479,35.06,203.11,203.06,9.76163629]
[1753207777770,35.06,203.11,203.07,0.67]
[1753207778754,45.54163629,203.11,203.05,4.9248676]
[1753207778954,9.76163629,203.1,203.04,44.91673572]
[1753207779776,45.54163629,203.11,203.05,9.76163629]
[1753207779966,45.54163629,203.11,203.04,35.15509943]
[1753207779967,35.06,203.11,203.07,9.76163629]
[1753207780161,35.06,203.11,203.07,0.67]
[1753207781016,10.48163629,203.1,203.04,0.03]
[1753207781159,9.76163629,203.06,203.04,1.73]
[1753207781492,10.48163629,203.06,203.04,1.73]
[1753207781793,35.06,203.07,203.04,1.73]
[1753207781794,44.82163629,203.07,203.04,1.73]
[1753207782084,35.06,203.07,203.04,14.7167438]
[1753207782286,35.06,203.07,203.04,0.03]
[1753207782287,9.76163629,203.07,203.04,0.03]
[1753207782457,9.76163629,203.06,203.04,0.03]
[1753207782869,10.48163629,203.07,203.04,0.03]
[1753207783067,9.76163629,203.06,203.04,0.03]
[1753207783366,44.82163629,203.08,203.04,0.03]
[1753207783771,50.46586662,203.08,203.04,0.03]
[1753207783957,9.76163629,203.07,203.04,0.03]
[1753207784289,9.76163629,203.06,203.04,0.03]
[1753207784458,9.76163629,203.05,203.04,0.03]
[1753207784655,10.48163629,203.05,203.04,0.03]
[1753207785495,21.9718932,203.05,203.04,0.03]
[1753207785665,42.77090433,203.05,203.04,0.03]
[1753207785868,57.0318932,203.05,203.04,0.03]
[1753207786680,16.90483629,203.05,203.04,0.03]
[1753207786878,45.54163629,203.05,203.04,0.03]
[1753207787579,61.74848183,203.05,203.02,0.03]
[1753207787784,61.74848183,203.05,202.9,0.03]
[1753207787785,26.0,202.96,202.9,0.03]
[1753207787984,45.06379786,202.95,202.9,0.03]
[1753207788158,26.68848183,202.94,202.9,0.03]
[1753207788363,27.38848183,202.94,202.9,0.03]
[1753207788759,0.14216157,202.92,202.9,0.03]
[1753207789075,0.14216157,202.92,202.88,0.1]
[1753207789076,0.14216157,202.9,202.88,0.1]
[1753207789376,62.40632026,202.89,202.88,0.1]
[1753207789588,67.3350994,202.89,202.88,0.1]
[1753207789774,67.47726097,202.89,202.88,0.1]
[1753207789966,26.0,202.86,202.83,0.1]
[1753207790168,61.84848183,202.85,202.83,0.1]
[1753207790381,62.54848183,202.85,202.83,0.1]
[1753207791185,62.54848183,202.85,202.69,43.56361272]
[1753207791186,16.92684554,202.84,202.66,0.72]
[1753207791376,9.76163629,202.71,202.66,0.72]
[1753207791577,9.76163629,202.69,202.66,5.65422174]
[1753207791775,9.76163629,202.69,202.66,4.93422174]
[1753207791776,35.2,202.69,202.66,4.93422174]
[1753207791985,35.26,202.7,202.67,0.72]
[1753207792489,35.24,202.71,202.67,0.72]
[1753207792688,45.00163629,202.71,202.67,0.72]
[1753207792863,45.00163629,202.71,202.66,4.93422174]
[1753207792864,9.76163629,202.69,202.66,4.93422174]
[1753207793066,45.00163629,202.68,202.64,5.65462295]
[1753207793273,0.14216157,202.76,202.62,14.80942924]
[1753207793591,14.80942924,202.69,202.64,4.93485984]
[1753207793810,50.06942924,202.69,202.65,0.72]
[1753207794366,35.26,202.69,202.66,0.72]
[1753207794705,35.26,202.69,202.67,0.72]
[1753207795085,0.7,202.77,202.68,41.52942924]
[1753207795405,50.04942924,202.76,202.7,14.80942924]
[1753207795710,14.80942924,202.73,202.7,4.93339911]
[1753207795872,14.80942924,202.74,202.7,4.93339911]
[1753207796072,14.80942924,202.73,202.7,4.93339911]
[1753207796580,14.80942924,202.73,202.68,4.93365759]
[1753207796581,14.80942924,202.72,202.68,4.93365759]
[1753207796782,14.80942924,202.69,202.66,4.93437284]
[1753207797087,50.06942924,202.69,202.66,4.93437284]
[1753207797262,35.26,202.69,202.66,4.93437284]
[1753207797667,26.7,202.76,202.67,15.52942924]
[1753207797868,14.80942924,202.74,202.67,15.52942924]
[1753207798096,0.7,202.83,202.71,14.80942924]
[1753207798397,0.7,202.85,202.76,14.80942924]
[1753207798698,14.80942924,202.82,202.75,14.80942924]
[1753207799198,14.80942924,202.79,202.72,14.80942924]
[1753207799375,14.80942924,202.78,202.72,14.80942924]
[1753207799571,35.32,202.79,202.71,26.0]
[1753207799572,35.32,202.79,202.73,14.80942924]
[1753207799775,35.32,202.79,202.74,14.80942924]
[1753207799990,35.32,202.79,202.75,4.93218249]
[1753207800169,50.12942924,202.79,202.75,4.93218249]
[1753207800371,35.32,202.79,202.77,14.80942924]
[1753207800602,1.648,202.86,202.78,0.72]
[1753207800603,35.32,202.82,202.78,0.72]
[1753207800902,35.32,202.83,202.78,45.05942924]
[1753207801485,35.32,202.83,202.79,14.80942924]
[1753207801890,35.32,202.85,202.82,49.26990946]
[1753207802111,35.32,202.85,202.83,14.80942924]
[1753207802512,35.32,202.85,202.83,45.05942924]
[1753207802692,35.32,202.85,202.84,15.52942924]
[1753207802898,35.32,202.88,202.84,15.52942924]
[1753207803399,35.32,202.88,202.84,0.72]
[1753207804119,35.32,202.88,202.85,0.72]
[1753207804513,35.32,202.88,202.84,19.73918148]
[1753207804745,35.32,202.88,202.84,20.45918148]
[1753207805289,15.50942924,202.93,202.86,14.80942924]
[1753207805495,35.3,202.92,202.86,14.80942924]
[1753207805689,50.10942924,202.92,202.86,14.80942924]
[1753207805892,50.10942924,202.92,202.86,4.92950803]
[1753207806092,50.10942924,202.92,202.86,19.73893727]
[1753207806389,50.10942924,202.92,202.86,4.92950803]
[1753207806590,14.80942924,202.88,202.85,1.7]
[1753207806817,50.10942924,202.87,202.8,46.75942924]
[1753207807294,50.10942924,202.87,202.81,14.80942924]
[1753207807813,50.10942924,202.87,202.81,21.44013273]
[1753207809193,14.80942924,202.85,202.81,1.7]
[1753207809387,14.80942924,202.82,202.76,15.52942924]
[1753207809732,14.80942924,202.82,202.78,0.03]
[1753207810616,15.50942924,202.81,202.78,0.03]
[1753207810823,14.80942924,202.79,202.78,0.03]
[1753207811001,50.08942924,202.79,202.78,0.03]
[1753207811206,50.78942924,202.79,202.78,0.03]
[1753207811402,67.71627478,202.79,202.78,0.03]
[1753207811601,26.0,202.76,202.66,14.80942924]
[1753207811807,14.80942924,202.7,202.61,0.72]
[1753207812008,50.10942924,202.69,202.62,14.80942924]
[1753207812205,35.3,202.69,202.63,14.80942924]
[1753207812513,35.3,202.69,202.64,14.80942924]
[1753207812822,35.3,202.69,202.65,14.80942924]
[1753207812991,35.3,202.69,202.66,4.93437284]
[1753207813196,35.3,202.72,202.68,14.80942924]
[1753207813418,35.3,202.72,202.68,15.52942924]
[1753207813619,14.80942924,202.7,202.64,19.74405178]
[1753207814216,14.80942924,202.69,202.64,4.93462254]
[1753207814522,35.3,202.68,202.64,4.93462254]
[1753207814826,35.3,202.68,202.64,19.74405178]
[1753207815123,35.3,202.68,202.64,4.93462254]
[1753207815309,35.3,202.68,202.64,19.74405178]
[1753207815920,36.0,202.68,202.63,26.0]
[1753207816129,50.80942924,202.68,202.63,26.0]
[1753207816316,0.7,202.67,202.63,30.93504821]
[1753207816626,50.10942924,202.68,202.62,26.0]
[1753207816818,50.10942924,202.68,202.61,4.93537252]
[1753207816819,0.7,202.66,202.61,19.74480176]
[1753207817625,35.3,202.68,202.62,0.71]
[1753207817834,35.3,202.68,202.63,14.80942924]
[1753207818624,0.67,202.67,202.61,30.93537252]
[1753207818828,15.47942924,202.67,202.61,45.74480176]
[1753207819047,14.80942924,202.66,202.61,30.93537252]
[1753207819222,0.67,202.65,202.61,30.93537252]
[1753207819428,9.8160207,202.66,202.61,30.93537252]
[1753207819935,9.8160207,202.66,202.61,4.93537252]
[1753207820101,9.8160207,202.67,202.61,4.93537252]
[1753207820308,9.8160207,202.64,202.57,10.5260207]
[1753207820623,45.0960207,202.64,202.58,9.8160207]
[1753207821104,45.0960207,202.64,202.58,14.75234215]
[1753207821306,9.8160207,202.63,202.57,5.64653859]
[1753207821705,9.8160207,202.63,202.57,4.93653859]
[1753207821918,10.4860207,202.62,202.56,40.75281101]
[1753207822511,10.4860207,202.62,202.52,12.34434239]
[1753207822512,9.8160207,202.58,202.52,9.8160207]
[1753207822705,9.8160207,202.57,202.51,9.8160207]
[1753207822918,9.8160207,202.57,202.5,5.6482716]
[1753207822919,10.4860207,202.57,202.5,15.4642923]
[1753207823116,10.4860207,202.57,202.5,14.7542923]
[1753207823117,9.8160207,202.56,202.5,14.7542923]
[1753207823415,45.0960207,202.55,202.48,5.64861707]
[1753207823610,45.0960207,202.55,202.48,41.46463777]
[1753207824010,45.0960207,202.55,202.49,9.8160207]
[1753207824422,35.28,202.55,202.51,9.8160207]
[1753207824615,35.26,202.57,202.53,9.8160207]
[1753207824838,9.8160207,202.54,202.48,4.93861707]
[1753207825041,9.8160207,202.49,202.43,5.03994286]
[1753207825212,61.93,202.53,202.43,5.03994286]
[1753207825213,9.8160207,202.46,202.43,0.1]
[1753207825412,9.8160207,202.45,202.43,0.1]
[1753207825609,10.4860207,202.45,202.43,0.1]
[1753207825813,9.8160207,202.44,202.43,0.1]
[1753207826010,10.4860207,202.44,202.43,0.1]
[1753207826231,45.7860207,202.44,202.43,0.1]
[1753207826659,55.6020414,202.44,202.42,0.1]
[1753207826942,27.41286624,202.43,202.31,4.94288056]
[1753207827121,9.8160207,202.34,202.28,9.8160207]
[1753207827323,9.8160207,202.34,202.29,30.94339809]
[1753207827324,35.32,202.34,202.29,30.94339809]
[1753207827526,35.32,202.34,202.3,0.71]
[1753207827729,35.32,202.34,202.3,26.71]
[1753207827943,35.34,202.37,202.31,15.56829293]
[1753207828237,14.85829293,202.35,202.29,5.65339809]
[1753207828443,35.99,202.39,202.31,14.85829293]
[1753207828613,14.85829293,202.38,202.32,14.85829293]
[1753207828808,14.85829293,202.37,202.31,14.85829293]
[1753207829227,14.85829293,202.37,202.31,19.80120232]
[1753207829428,35.99,202.39,202.31,19.80120232]
[1753207829429,35.32,202.39,202.32,26.71]
[1753207829636,35.32,202.39,202.34,14.85829293]
[1753207829840,14.85829293,202.38,202.33,0.71]
[1753207830231,14.85829293,202.41,202.35,14.85829293]
[1753207830438,50.21829293,202.41,202.35,15.56829293]
[1753207830640,35.36,202.41,202.36,14.85829293]
[1753207830945,35.36,202.41,202.31,42.01472986]
[1753207830946,14.85829293,202.4,202.34,56.24]
[1753207831241,14.85829293,202.39,202.35,4.94193229]
[1753207831417,14.85829293,202.4,202.35,4.94193229]
[1753207831846,36.03,202.41,202.35,4.94193229]
[1753207832223,14.85829293,202.4,202.35,4.94193229]
[1753207832548,15.52829293,202.39,202.35,4.94193229]
[1753207832859,14.85829293,202.36,202.34,0.03]
[1753207833142,14.85829293,202.35,202.34,0.03]
[1753207833348,15.52829293,202.35,202.34,0.03]
[1753207833847,35.36,202.36,202.34,0.03]
[1753207834218,14.85829293,202.35,202.34,0.03]
[1753207834928,35.36,202.36,202.34,0.03]
[1753207835128,14.85829293,202.35,202.34,0.03]
[1753207835344,14.85829293,202.36,202.34,0.03]
[1753207835845,14.85829293,202.38,202.34,0.03]
[1753207836019,35.4,202.39,202.35,0.71]
[1753207836219,14.85829293,202.38,202.34,0.03]
[1753207836420,14.85829293,202.37,202.34,0.03]
[1753207836642,15.52829293,202.37,202.34,0.03]
[1753207836845,14.85829293,202.37,202.34,0.03]
[1753207837318,35.4,202.39,202.34,0.03]
[1753207837542,14.85829293,202.38,202.34,0.03]
[1753207838052,14.85829293,202.35,202.34,0.03]
[1753207838416,50.23829293,202.35,202.34,0.03]
[1753207838636,35.38,202.35,202.34,0.03]
[1753207839269,50.23829293,202.35,202.34,0.03]
[1753207839476,35.38,202.35,202.34,0.03]
[1753207839636,50.23829293,202.35,202.34,0.03]
[1753207839951,50.90829293,202.35,202.34,0.03]
[1753207840644,36.05,202.35,202.34,0.03]
[1753207841046,35.38,202.35,202.34,0.03]
[1753207841475,14.85829293,202.38,202.34,0.03]
[1753207841676,35.36,202.37,202.34,0.03]
[1753207841978,14.85829293,202.36,202.34,0.03]
[1753207842167,15.52829293,202.36,202.34,0.03]
[1753207842872,14.85829293,202.36,202.34,0.03]
[1753207843046,50.21829293,202.37,202.34,0.03]
[1753207843248,35.36,202.37,202.34,0.03]
[1753207844062,35.36,202.37,202.34,0.74]
[1753207844662,35.36,202.37,202.34,0.03]
[1753207845666,15.52829293,202.36,202.34,0.03]
[1753207845872,14.85829293,202.35,202.34,0.03]
[1753207846059,15.52829293,202.35,202.34,0.03]
[1753207847380,15.56829293,202.35,202.34,0.03]
[1753207847580,20.51022522,202.35,202.34,0.03]
[1753207847797,45.21627076,202.35,202.34,0.03]
[1753207847977,45.21627076,202.35,202.29,0.03]
[1753207847978,26.0,202.31,202.29,0.03]
[1753207848176,67.12513847,202.3,202.29,0.03]
[1753207848367,26.0,202.26,202.14,4.94706638]
[1753207848560,14.85829293,202.17,202.14,4.94706638]
[1753207848854,14.85829293,202.17,202.11,12.36935495]
[1753207848855,50.94829293,202.16,202.11,29.53]
[1753207849051,14.85829293,202.14,202.11,29.53]
[1753207849257,36.09,202.15,202.11,4.94757862]
[1753207849658,9.86650173,202.14,202.09,4.94806073]
[1753207850156,10.57650173,202.14,202.08,4.94839092]
[1753207850360,10.57650173,202.14,202.03,13.08404175]
[1753207850567,10.57650173,202.14,202.02,3.27241307]
[1753207850772,27.50334727,202.14,202.05,4.94904889]
[1753207851098,27.50334727,202.14,202.05,12.37317481]
[1753207851386,36.09,202.14,202.08,4.94829557]
[1753207851564,45.95650173,202.14,202.05,0.71]
[1753207851761,67.83041365,202.14,202.03,4.94954011]
[1753207851976,67.83041365,202.14,202.02,4.9499963]
[1753207852173,67.83041365,202.14,202.01,26.71]
[1753207852484,67.83041365,202.14,202.01,22.24211439]
[1753207852685,93.83041365,202.14,202.04,0.71]
[1753207852888,93.83041365,202.14,202.03,4.94953039]
[1753207852889,67.83041365,202.14,202.03,4.94953039]
[1753207853092,67.83041365,202.14,202.01,26.0]
[1753207853466,67.83041365,202.14,202.02,4.94992662]
[1753207853677,67.83041365,202.14,202.04,4.94938692]
[1753207853910,9.86650173,202.05,201.99,14.81724186]
[1753207854198,35.54,202.04,201.99,4.95074013]
[1753207854409,2.2489,202.1,202.01,9.86650173]
[1753207854581,35.62,202.08,202.02,0.71]
[1753207854905,35.62,202.08,202.04,0.03]
[1753207855206,45.48650173,202.08,202.04,0.03]
[1753207855409,35.62,202.08,202.04,9.89650173]
[1753207855703,35.62,202.08,202.05,0.71]
[1753207856195,45.48650173,202.08,202.04,0.03]
[1753207856505,35.62,202.08,202.04,0.03]
[1753207856685,9.86650173,202.07,202.04,0.03]
[1753207856890,9.86650173,202.06,202.04,0.03]
[1753207857092,45.56650173,202.05,202.04,0.03]
[1753207857284,36.41,202.05,202.04,0.03]
[1753207857488,46.4186633,202.05,202.04,0.03]
[1753207857800,41.50143155,202.05,202.04,0.03]
[1753207858103,68.15261725,202.05,202.04,0.03]
[1753207859402,53.33684554,202.05,202.04,0.03]
[1753207859599,63.20334727,202.05,202.04,0.03]
[1753207859821,10.7186633,202.05,202.04,0.03]
[1753207860010,89.52334727,202.05,202.04,0.03]
[1753207860183,1.979855,202.08,202.04,0.03]
[1753207860378,0.71,202.15,202.05,9.86650173]
[1753207860581,9.86650173,202.11,202.04,0.74]
[1753207860798,36.08,202.1,202.04,0.74]
[1753207861002,36.08,202.1,202.05,9.86650173]
[1753207861207,36.08,202.1,202.07,14.89096849]
[1753207861506,14.89096849,202.08,202.04,0.03]
[1753207861718,36.1,202.07,202.04,0.03]
[1753207861894,14.89096849,202.05,202.04,0.03]
[1753207862094,36.81,202.07,202.04,0.03]
[1753207862095,0.71,202.06,202.04,0.03]
[1753207862296,15.60096849,202.05,202.04,0.03]
[1753207862494,32.52781403,202.05,202.04,0.03]
[1753207862701,16.78468397,202.01,201.99,0.03]
[1753207862906,67.95781403,202.0,201.99,0.03]
[1753207863305,7.2527,202.05,201.99,4.98067964]
[1753207863520,2.58283398,202.08,201.99,19.87164813]
[1753207863521,36.16,202.04,201.99,19.87164813]
[1753207863815,36.87,202.03,201.99,0.03]
[1753207864110,26.0,202.05,201.99,0.03]
[1753207864111,51.05096849,202.02,201.99,0.03]
[1753207864313,14.89096849,202.0,201.99,0.03]
[1753207864489,31.81781403,202.0,201.99,0.03]
[1753207864865,26.0,201.93,201.82,0.71]
[1753207865115,14.89096849,201.87,201.81,5.66494462]
[1753207865310,36.22,201.86,201.81,5.66491933]
[1753207865513,51.11096849,201.86,201.81,0.71]
[1753207865730,15.74313006,201.85,201.77,0.71]
[1753207865890,14.89096849,201.85,201.77,0.71]
[1753207866090,15.60096849,201.85,201.77,0.71]
[1753207866296,15.60096849,201.85,201.72,36.2]
[1753207866297,32.52781403,201.85,201.74,0.71]
[1753207867032,32.52781403,201.85,201.7,26.0]
[1753207867033,32.52781403,201.85,201.7,0.71]
[1753207867395,26.0,201.77,201.68,4.95834986]
[1753207867593,14.89096849,201.72,201.68,4.95834986]
[1753207867795,14.89096849,201.71,201.67,5.66859482]
[1753207868106,26.71,201.77,201.67,5.66859482]
[1753207868107,36.22,201.74,201.69,14.89096849]
[1753207868309,14.89096849,201.73,201.69,0.71]
[1753207868516,51.09096849,201.74,201.7,0.71]
[1753207868717,0.85216157,201.8,201.67,19.84956331]
[1753207868718,26.0,201.81,201.71,0.71]
[1753207868932,14.89096849,201.77,201.71,0.71]
[1753207869136,14.89096849,201.72,201.67,5.66859482]
[1753207869431,51.19096849,201.74,201.69,4.95810402]
[1753207869611,51.19096849,201.74,201.7,0.71]
[1753207870024,36.3,201.74,201.69,49.02901653]
[1753207870215,36.32,201.76,201.73,14.89096849]
[1753207870422,14.89096849,201.74,201.71,0.71]
[1753207870610,14.89096849,201.72,201.69,4.95810402]
[1753207870930,36.34,201.73,201.69,4.95810402]
[1753207871435,0.71,201.79,201.71,4.95761241]
[1753207871725,14.89096849,201.75,201.71,4.95761241]
[1753207871918,14.89096849,201.75,201.68,12.3958574]
[1753207871919,14.89096849,201.72,201.66,4.95884161]
[1753207872123,14.89096849,201.72,201.61,1.5957]
[1753207872124,14.89096849,201.68,201.61,0.71]
[1753207872363,14.89096849,201.68,201.62,15.60096849]
[1753207872639,36.38,201.73,201.67,14.89096849]
[1753207872842,36.4,201.76,201.71,14.89096849]
[1753207873031,36.4,201.76,201.72,0.71]
[1753207873206,14.89096849,201.74,201.67,26.0]
[1753207873528,14.89096849,201.73,201.67,4.95859572]
[1753207873723,0.71,201.75,201.67,4.95859572]
[1753207873919,0.71,201.75,201.67,19.84956421]
[1753207874125,14.89096849,201.75,201.69,14.89096849]
[1753207874827,14.89096849,201.74,201.68,0.71]
[1753207875229,14.89096849,201.73,201.68,0.71]
[1753207875727,14.89096849,201.74,201.69,29.53]
[1753207875930,14.89096849,201.74,201.68,20.55920382]
[1753207876141,14.89096849,201.74,201.69,0.71]
[1753207876333,36.4,201.76,201.69,0.71]
[1753207876334,14.89096849,201.75,201.69,0.71]
[1753207876544,14.89096849,201.74,201.68,4.95823533]
[1753207876712,36.4,201.76,201.68,4.95823533]
[1753207877035,14.89096849,201.69,201.63,0.71]
[1753207877340,0.71,201.75,201.63,0.71]
[1753207877341,0.71,201.75,201.63,30.24]
[1753207877633,14.89096849,201.73,201.66,19.84975354]
[1753207877821,36.46,201.74,201.67,0.71]
[1753207878132,14.89096849,201.7,201.64,19.85009006]
[1753207878318,14.89096849,201.7,201.61,12.40017856]
[1753207878319,36.46,201.7,201.61,4.96007142]
[1753207878518,14.89096849,201.68,201.61,19.85103991]
[1753207878731,14.89096849,201.68,201.61,4.96007142]
[1753207878928,36.46,201.7,201.65,14.89096849]
[1753207879326,36.46,201.7,201.66,14.89096849]
[1753207879527,36.46,201.7,201.64,4.95933346]
[1753207879732,36.46,201.7,201.64,19.85030195]
[1753207880046,36.46,201.7,201.64,0.03]
[1753207880344,36.46,201.7,201.64,14.92096849]
[1753207880509,51.35096849,201.7,201.64,14.92096849]
[1753207880715,36.46,201.7,201.65,14.89096849]
[1753207881022,51.35096849,201.7,201.66,0.71]
[1753207881226,0.69,201.69,201.64,0.03]
[1753207881638,14.89096849,201.68,201.64,0.03]
[1753207881938,14.89096849,201.67,201.64,0.03]
[1753207882121,0.69,201.68,201.64,0.03]
[1753207882325,26.0,201.7,201.64,0.03]
[1753207882326,0.69,201.66,201.64,0.03]
[1753207882524,41.03313006,201.65,201.64,0.03]
[1753207882716,40.89096849,201.65,201.64,0.03]
[1753207882912,41.58096849,201.65,201.64,0.03]
[1753207883626,0.69,201.69,201.64,0.03]
[1753207883823,24.93089548,201.9,201.64,0.03]
[1753207883824,14.89096849,201.72,201.66,14.89096849]
[1753207884025,14.89096849,201.7,201.64,0.03]
[1753207884255,14.89096849,201.67,201.64,0.03]
[1753207884548,14.89096849,201.65,201.64,0.03]
[1753207884734,37.23,201.66,201.64,0.03]
[1753207884926,14.89096849,201.65,201.64,0.03]
[1753207885327,36.54,201.66,201.64,0.03]
[1753207885648,51.43096849,201.66,201.64,0.03]
[1753207886429,36.54,201.66,201.64,0.03]
[1753207886658,51.43096849,201.66,201.64,0.03]
[1753207886830,15.58096849,201.65,201.64,0.03]
[1753207887621,36.54,201.66,201.64,0.03]
[1753207887622,14.89096849,201.66,201.64,0.03]
[1753207887837,51.43096849,201.65,201.64,0.03]
[1753207888238,36.54,201.65,201.64,0.03]
[1753207888833,51.43096849,201.65,201.64,0.03]
[1753207889454,36.56,201.65,201.64,0.03]
[1753207890640,51.45096849,201.65,201.64,0.03]
[1753207890830,52.14096849,201.65,201.64,0.03]
[1753207891353,51.45096849,201.65,201.64,0.03]
[1753207891657,36.56,201.65,201.64,0.03]
[1753207891955,52.14096849,201.65,201.64,0.03]
[1753207892373,57.24221758,201.65,201.64,0.03]
[1753207892657,52.28313006,201.65,201.64,0.03]
[1753207892870,24.89096849,201.74,201.64,0.03]
[1753207892871,14.89096849,201.68,201.64,0.03]
[1753207893026,36.54,201.67,201.64,0.74]
[1753207893231,36.54,201.67,201.64,0.03]
[1753207893774,9.91248292,201.66,201.64,0.03]
[1753207893945,0.69,201.66,201.64,0.03]
[1753207894133,9.91248292,201.66,201.64,0.03]
[1753207894329,46.45248292,201.67,201.64,0.03]
[1753207894844,36.54,201.67,201.64,0.03]
[1753207895046,36.54,201.67,201.64,0.74]
[1753207895240,0.69,201.72,201.64,0.03]
[1753207895445,5.14657035,201.82,201.71,9.91248292]
[1753207895446,11.47588292,201.77,201.71,9.91248292]
[1753207895747,11.46605297,201.81,201.75,14.86892805]
[1753207895748,36.56,201.79,201.75,14.86892805]
[1753207896058,36.56,201.84,201.78,9.91248292]
[1753207896269,46.47248292,201.84,201.78,9.91248292]
[1753207896440,36.56,201.84,201.8,9.91248292]
[1753207896760,36.56,201.84,201.76,0.71]
[1753207896761,36.56,201.84,201.81,9.91248292]
[1753207896964,36.56,201.84,201.79,9.91248292]
[1753207897139,36.56,201.84,201.8,9.91248292]
[1753207897463,7.0852,201.91,201.82,9.91248292]
[1753207897667,46.47248292,201.9,201.84,9.91248292]
[1753207897963,0.69,201.89,201.82,4.95481916]
[1753207898271,10.60248292,201.89,201.83,9.91248292]
[1753207898445,10.60248292,201.89,201.82,9.91248292]
[1753207898646,0.69,201.89,201.84,9.91248292]
[1753207899056,10.60248292,201.89,201.81,5.66512096]
[1753207899257,36.56,201.9,201.84,14.92778048]
[1753207899474,36.56,201.9,201.84,15.63778048]
[1753207900178,36.56,201.9,201.83,14.92778048]
[1753207900179,51.48778048,201.9,201.83,14.92778048]
[1753207900353,51.48778048,201.9,201.83,19.88237274]
[1753207900880,36.56,201.9,201.83,14.92778048]
[1753207901053,41.51295833,201.9,201.82,14.92778048]
[1753207901370,14.92778048,201.89,201.82,19.88264136]
[1753207901577,0.69,201.9,201.85,14.92778048]
[1753207901766,36.5,201.9,201.85,14.92778048]
[1753207902074,36.5,201.9,201.85,19.88193854]
[1753207902444,36.5,201.9,201.86,15.63778048]
[1753207902649,36.5,201.9,201.87,14.92778048]
[1753207902981,0.06,201.93,201.89,14.92778048]
[1753207903278,0.06,201.93,201.9,14.92778048]
[1753207903461,0.06,201.93,201.89,14.92778048]
[1753207903658,0.06,201.93,201.91,14.92778048]
[1753207904264,0.06,201.93,201.86,5.66370188]
[1753207904470,0.06,201.93,201.88,14.92778048]